bitfinex-derivatives/quotes_SOLF0:USTF0_20250424
["timestamp","ask_amount","ask_price","bid_price","bid_amount"]
[1745503472021,40.94985172,149.76,149.73,6.6762]
[1745503472221,40.94985172,149.76,149.65,40.94985172]
[1745503472420,40.94985172,149.76,149.66,6.57159468]
[1745503472620,40.94985172,149.76,149.65,40.94985172]
[1745503472822,40.94985172,149.76,149.66,6.57162107]
[1745503473021,40.94985172,149.76,149.73,6.6762]
[1745503473216,40.94985172,149.76,149.65,40.94985172]
[1745503473421,40.94985172,149.76,149.66,6.57734931]
[1745503473621,40.94985172,149.76,149.64,1.8903]
[1745503473818,40.94985172,149.76,149.65,6.57837481]
[1745503474022,47.62515172,149.76,149.71,6.6771]
[1745503474321,40.94985172,149.76,149.71,6.6771]
[1745503474525,40.94985172,149.76,149.64,1.8903]
[1745503474719,1.16267415,149.78,149.64,1.8903]
[1745503474720,1.16267415,149.78,149.65,47.53316467]
[1745503474919,36.6,149.79,149.68,40.94985172]
[1745503475125,36.6,149.79,149.78,6.6743]
[1745503476621,36.6,149.79,149.71,40.94985172]
[1745503476826,36.6,149.79,149.66,54.30855172]
[1745503477028,36.6,149.79,149.67,6.58828005]
[1745503477231,36.6,149.79,149.68,6.58828005]
[1745503477423,40.94985172,149.77,149.69,6.58828005]
[1745503477624,40.94985172,149.77,149.64,42.84015172]
[1745503477829,47.62485172,149.77,149.72,6.6766]
[1745503478126,6.675,149.77,149.64,42.84015172]
[1745503478327,6.675,149.77,149.72,6.6767]
[1745503478529,36.6,149.79,149.64,42.84015172]
[1745503478727,40.94985172,149.76,149.65,6.60355795]
[1745503478933,6.6765,149.74,149.66,6.60355795]
[1745503479132,37.8291,149.73,149.67,6.60355795]
[1745503479332,37.8291,149.73,149.7,6.6776]
[1745503479532,78.77895172,149.73,149.62,78.85395172]
[1745503479733,1.9921,149.72,149.63,6.61491098]
[1745503480032,8.6692,149.72,149.68,6.6785]
[1745503480229,1.9921,149.72,149.6,1.9519]
[1745503480430,1.9921,149.72,149.68,6.6787]
[1745503480733,1.9921,149.72,149.6,1.9519]
[1745503480937,1.9921,149.72,149.61,6.62261864]
[1745503481134,1.9921,149.72,149.66,6.6794]
[1745503481336,1.9921,149.72,149.6,1.9519]
[1745503481538,1.9921,149.72,149.65,6.6798]
[1745503481935,40.94985172,149.7,149.6,1.9519]
[1745503482234,40.94985172,149.71,149.61,6.62806214]
[1745503482435,1.9921,149.72,149.62,6.62806214]
[1745503482637,1.9921,149.72,149.67,6.6789]
[1745503482938,1.9921,149.72,149.6,1.9519]
[1745503483239,1.9921,149.72,149.64,6.6802]
[1745503483434,6.679,149.68,149.65,6.62782058]
[1745503483634,35.92,149.67,149.6,1.9519]
[1745503483936,42.5992,149.67,149.61,6.63071613]
[1745503484138,35.92,149.67,149.62,6.63071613]
[1745503484335,35.92,149.67,149.63,6.63071613]
[1745503484537,35.92,149.67,149.64,6.63071613]
[1745503484740,35.92,149.67,149.59,48.68666669]
[1745503484941,6.6799,149.66,149.6,6.63301645]
[1745503485137,6.6799,149.66,149.61,6.63301645]
[1745503485334,6.6799,149.66,149.62,6.63301645]
[1745503485535,42.5994,149.67,149.64,6.6804]
[1745503485936,35.92,149.67,149.65,6.6798]
[1745503486136,35.92,149.67,149.59,40.94985172]
[1745503486333,35.92,149.67,149.6,6.62719763]
[1745503486537,35.92,149.67,149.66,6.6796]
[1745503486738,35.92,149.71,149.66,6.62719763]
[1745503487038,35.92,149.71,149.68,6.6786]
[1745503487230,35.92,149.71,149.64,40.94985172]
[1745503487433,35.92,149.71,149.65,6.62027475]
[1745503487638,6.6785,149.69,149.65,6.68]
[1745503487841,35.92,149.71,149.61,44.82125172]
[1745503488139,35.92,149.71,149.62,6.6234341]
[1745503488342,35.92,149.71,149.63,6.6234341]
[1745503488643,6.6779,149.7,149.66,6.6793]
[1745503488940,35.92,149.71,149.61,3.8714]
[1745503489141,6.6782,149.7,149.66,6.6793]
[1745503489337,35.92,149.71,149.66,6.6793]
[1745503489838,6.6782,149.7,149.67,6.6791]
[1745503491437,6.6783,149.69,149.67,6.6791]
[1745503491639,35.92,149.71,149.61,3.8714]
[1745503491944,35.92,149.71,149.63,40.94985172]
[1745503492142,35.92,149.71,149.64,6.61953044]
[1745503492343,35.92,149.71,149.65,6.61953044]
[1745503492544,35.92,149.71,149.66,6.61953044]
[1745503492747,42.5974,149.71,149.68,6.6784]
[1745503492938,35.92,149.71,149.63,40.94985172]
[1745503493142,35.92,149.71,149.64,6.61763307]
[1745503493342,35.92,149.71,149.68,6.6784]
[1745503493946,35.92,149.71,149.67,6.679]
[1745503494147,35.92,149.71,149.61,3.8714]
[1745503494443,6.6788,149.68,149.65,6.6798]
[1745503494651,35.92,149.71,149.61,3.8714]
[1745503494850,40.94985172,149.69,149.62,6.62104187]
[1745503495044,6.6801,149.66,149.63,13.30184187]
[1745503495348,34.72,149.66,149.6,1.9544]
[1745503495550,41.3999,149.66,149.61,6.62382314]
[1745503495746,34.72,149.66,149.62,6.62382314]
[1745503496049,34.72,149.66,149.63,6.62359224]
[1745503496252,34.72,149.66,149.6,1.9544]
[1745503496445,34.72,149.66,149.61,6.62403134]
[1745503496646,34.72,149.66,149.62,6.62403134]
[1745503496948,34.72,149.66,149.6,1.9544]
[1745503497150,34.72,149.66,149.61,6.62452121]
[1745503497345,41.3999,149.66,149.63,6.6806]
[1745503497546,34.72,149.66,149.6,1.9544]
[1745503497847,34.72,149.66,149.61,6.62549239]
[1745503498045,34.72,149.66,149.65,6.6801]
[1745503498846,34.74,149.71,149.6,1.9544]
[1745503499046,1.16306273,149.73,149.69,40.94985172]
[1745503499351,34.74,149.78,149.7,10.48060418]
[1745503499547,34.74,149.78,149.72,40.94985172]
[1745503499748,34.74,149.78,149.73,6.62300418]
[1745503499950,34.74,149.78,149.72,40.94985172]
[1745503499951,34.74,149.78,149.74,6.62300418]
[1745503500150,34.74,149.78,149.77,6.6747]
[1745503500452,34.74,149.82,149.75,40.94985172]
[1745503500751,34.74,149.82,149.76,6.60957985]
[1745503501051,34.74,149.82,149.75,40.94985172]
[1745503501052,34.74,149.82,149.77,6.60957985]
[1745503501349,34.74,149.82,149.75,40.94985172]
[1745503501550,34.74,149.82,149.76,6.60840953]
[1745503501749,34.74,149.82,149.77,6.60840953]
[1745503502049,34.74,149.82,149.72,40.94985172]
[1745503502349,34.74,149.82,149.73,6.60813213]
[1745503502550,34.74,149.82,149.74,6.60813213]
[1745503502748,34.74,149.82,149.75,6.60813213]
[1745503502947,34.74,149.82,149.72,40.94985172]
[1745503503149,34.74,149.82,149.75,40.94985172]
[1745503503651,34.74,149.82,149.72,40.94985172]
[1745503503851,6.6732,149.81,149.73,6.60590112]
[1745503504053,6.6732,149.81,149.74,6.60590112]
[1745503504247,34.74,149.82,149.75,6.60590112]
[1745503504454,75.68985172,149.82,149.7,5.762]
[1745503504653,75.68985172,149.82,149.71,6.60698787]
[1745503504952,34.74,149.82,149.72,47.55683959]
[1745503505151,34.74,149.82,149.73,6.60698787]
[1745503505353,34.74,149.82,149.74,6.60698787]
[1745503505551,34.74,149.82,149.72,40.94985172]
[1745503505552,34.74,149.82,149.75,6.60698787]
[1745503505750,34.74,149.82,149.72,40.94985172]
[1745503505954,41.4127,149.82,149.78,6.6742]
[1745503506346,40.94985172,149.81,149.7,5.762]
[1745503506549,47.62555172,149.75,149.66,34.72]
[1745503506853,34.72,149.74,149.67,6.60808609]
[1745503507154,34.72,149.74,149.68,6.60808609]
[1745503507355,34.72,149.74,149.69,6.60808609]
[1745503507658,34.72,149.74,149.7,6.6774]
[1745503508149,34.72,149.78,149.73,6.6762]
[1745503508353,34.72,149.78,149.67,40.94985172]
[1745503508554,34.72,149.78,149.68,6.60833256]
[1745503508757,34.72,149.78,149.69,6.60833256]
[1745503508950,34.72,149.78,149.7,6.60833256]
[1745503509157,40.94985172,149.76,149.65,1.9642]
[1745503509657,40.94985172,149.76,149.66,6.61161744]
[1745503509857,6.6762,149.74,149.7,6.6775]
[1745503510156,34.72,149.74,149.65,1.9642]
[1745503510356,34.72,149.74,149.66,6.61319647]
[1745503510554,34.72,149.74,149.67,6.61319647]
[1745503510752,38.7001,149.8,149.7,40.94985172]
[1745503511061,34.72,149.84,149.73,40.94985172]
[1745503511356,34.72,149.84,149.74,8.52092776]
[1745503511655,6.6723,149.83,149.75,6.60727534]
[1745503511956,34.72,149.84,149.74,1.9077]
[1745503512252,75.66985172,149.84,149.75,6.60682709]
[1745503512453,2.0044,149.83,149.74,1.9077]
[1745503512754,2.0044,149.83,149.75,6.60661678]
[1745503512957,2.0044,149.83,149.76,6.60661678]
[1745503513157,2.0044,149.83,149.74,1.9077]
[1745503513356,2.0044,149.83,149.75,6.60591061]
[1745503513549,2.0044,149.83,149.76,6.60591061]
[1745503513747,2.0044,149.83,149.79,6.6737]
[1745503513748,8.6767,149.83,149.79,6.6737]
[1745503514160,2.0044,149.83,149.79,6.6737]
[1745503514354,2.0044,149.83,149.8,6.6732]
[1745503515258,2.0044,149.83,149.73,40.94985172]
[1745503515455,6.6733,149.81,149.74,6.60180214]
[1745503515656,2.0044,149.83,149.75,6.60180214]
[1745503515959,42.95425172,149.83,149.76,6.60180214]
[1745503516156,42.95425172,149.83,149.72,1.9588]
[1745503516359,42.95425172,149.83,149.73,6.60086942]
[1745503516551,47.62205172,149.83,149.74,6.60086942]
[1745503516855,6.6722,149.83,149.75,6.60086942]
[1745503517057,34.72,149.84,149.76,6.60086942]
[1745503517254,34.72,149.84,149.72,1.9588]
[1745503517456,34.72,149.84,149.73,6.59648286]
[1745503517657,6.6721,149.83,149.74,6.59648286]
[1745503517859,34.72,149.84,149.75,6.59648286]
[1745503518058,34.72,149.84,149.79,6.6736]
[1745503518256,34.72,149.84,149.72,1.9588]
[1745503518560,34.72,149.84,149.82,6.6722]
[1745503518756,34.72,149.84,149.74,75.64985172]
[1745503519061,34.72,149.84,149.75,6.59092513]
[1745503519250,34.72,149.84,149.76,6.59092513]
[1745503519450,34.72,149.84,149.77,6.59092513]
[1745503519653,34.72,149.84,149.81,6.6727]
[1745503519861,41.3919,149.84,149.81,6.6727]
[1745503520060,41.3919,149.84,149.74,75.64985172]
[1745503520354,6.673,149.81,149.75,6.58894232]
[1745503520559,40.94985172,149.82,149.72,1.9588]
[1745503520757,40.94985172,149.82,149.73,6.59150993]
[1745503520961,40.94985172,149.82,149.74,6.59150993]
[1745503521159,40.94985172,149.82,149.75,6.59150993]
[1745503521361,6.6722,149.83,149.79,6.6735]
[1745503521555,34.72,149.84,149.72,27.09869337]
[1745503521754,34.72,149.84,149.73,6.58722483]
[1745503521954,41.3919,149.84,149.8,6.6731]
[1745503522158,34.72,149.84,149.8,6.6731]
[1745503522662,34.72,149.84,149.72,27.09869337]
[1745503522958,34.72,149.84,149.73,6.58463736]
[1745503523263,25.13989337,149.82,149.75,6.6756]
[1745503523561,25.13989337,149.82,149.72,1.9588]
[1745503523761,34.72,149.84,149.76,6.6749]
[1745503523962,25.13989337,149.82,149.72,1.9588]
[1745503524163,6.6741,149.79,149.75,6.6753]
[1745503524353,6.6741,149.79,149.72,1.9588]
[1745503524557,25.13989337,149.82,149.73,6.58660539]
[1745503524754,25.13989337,149.82,149.72,1.9588]
[1745503524955,25.13989337,149.79,149.72,1.9588]
[1745503525164,34.28,149.78,149.72,1.9588]
[1745503525866,34.28,149.78,149.75,6.6752]
[1745503526360,34.28,149.78,149.76,6.675]
[1745503526865,40.9543,149.78,149.71,3.7388]
[1745503527259,25.13989337,149.82,149.79,6.6737]
[1745503527456,6.6722,149.83,149.71,28.87869337]
[1745503527457,34.28,149.83,149.74,25.13989337]
[1745503527662,34.28,149.83,149.75,42.79545853]
[1745503527862,34.28,149.87,149.77,25.13989337]
[1745503528061,34.28,149.87,149.78,8.51218441]
[1745503528262,34.28,149.87,149.78,1.9269]
[1745503528768,34.28,149.87,149.79,8.44821617]
[1745503528961,34.28,149.87,149.79,1.8651]
[1745503529161,34.28,149.87,149.84,6.6716]
[1745503529864,40.9506,149.87,149.79,1.8651]
[1745503530166,59.41989337,149.87,149.78,1.9269]
[1745503530360,6.6719,149.84,149.8,6.6733]
[1745503530562,59.41989337,149.87,149.75,36.2071]
[1745503530763,59.41989337,149.87,149.76,6.58596682]
[1745503531065,59.41989337,149.87,149.77,6.58596682]
[1745503531362,59.41989337,149.87,149.78,6.58496343]
[1745503531667,59.41989337,149.87,149.79,6.58496343]
[1745503531865,34.28,149.87,149.76,25.13989337]
[1745503532063,34.28,149.87,149.77,68.58423597]
[1745503532364,34.28,149.87,149.79,25.13989337]
[1745503532567,34.28,149.87,149.8,6.58423597]
[1745503532868,34.28,149.87,149.81,6.58123937]
[1745503533068,34.28,149.87,149.82,6.58016023]
[1745503533368,34.28,149.87,149.86,6.6707]
[1745503533567,1.8874,149.9,149.8,34.28]
[1745503533870,59.41989337,149.96,149.82,25.13989337]
[1745503534171,1.21865804,149.95,149.85,25.13989337]
[1745503534468,1.21865804,149.95,149.94,6.6668]
[1745503534664,1.21865804,149.95,149.86,34.28]
[1745503534863,1.21865804,149.94,149.86,34.28]
[1745503535164,25.13989337,149.96,149.87,6.56880568]
[1745503535464,1.21843558,149.95,149.86,34.28]
[1745503535665,1.21843558,149.95,149.87,6.56442045]
[1745503535969,35.47843558,149.95,149.86,34.28]
[1745503536167,34.26,149.95,149.87,6.56432033]
[1745503536464,34.26,149.95,149.88,6.56432033]
[1745503536665,1.2184179,149.94,149.86,34.28]
[1745503536868,34.26,149.95,149.91,6.6682]
[1745503537166,34.26,149.95,149.86,96.28]
[1745503537467,34.26,149.95,149.87,6.56167675]
[1745503537665,34.26,149.95,149.86,34.28]
[1745503537865,40.927,149.95,149.92,6.668]
[1745503538166,34.26,149.95,149.92,6.668]
[1745503538362,40.927,149.95,149.86,34.28]
[1745503538665,25.13989337,149.93,149.84,34.26]
[1745503538967,31.80789337,149.93,149.89,6.669]
[1745503539265,25.13989337,149.93,149.84,34.26]
[1745503539566,25.13989337,149.93,149.85,6.55603784]
[1745503539866,25.13989337,149.93,149.83,4.0101]
[1745503540069,34.26,149.95,149.84,6.55770846]
[1745503540263,34.26,149.95,149.83,4.0101]
[1745503540264,1.21846046,149.94,149.85,65.95760183]
[1745503540568,34.26,149.95,149.86,68.55770846]
[1745503540770,34.26,149.95,149.87,6.55770846]
[1745503540962,1.21842819,149.94,149.88,6.55556373]
[1745503541165,1.21842819,149.94,149.86,62.0]
[1745503541464,25.13989337,149.96,149.87,6.55927348]
[1745503541769,514.82,149.99,149.88,6.55927348]
[1745503541770,59.39989337,149.99,149.88,6.55927348]
[1745503541968,1.21812842,149.98,149.89,8.57767348]
[1745503542269,1.21812842,149.98,149.9,40.81927348]
[1745503542567,1.21812842,149.98,149.91,6.55927348]
[1745503542769,1.21812842,149.98,149.92,6.55927348]
[1745503543066,31.80369337,150.02,149.97,6.6654]
[1745503543261,25.13989337,150.02,149.91,3.7817]
[1745503543458,36.1448,150.03,149.92,6.55044119]
[1745503543662,34.26,150.03,150.01,6.664]
[1745503543960,33.70329337,150.05,150.01,6.664]
[1745503544158,34.26,150.07,149.95,34.26]
[1745503544364,25.13989337,150.05,149.96,8.55430155]
[1745503544671,25.13989337,150.05,149.97,6.54740155]
[1745503544870,25.13989337,150.05,149.96,2.0069]
[1745503545069,25.13989337,150.02,149.93,34.24]
[1745503545265,31.80379337,150.02,149.98,6.6654]
[1745503545675,31.80379337,150.02,149.99,6.6649]
[1745503545865,25.13989337,150.02,149.99,6.6649]
[1745503546065,25.13989337,150.02,149.91,3.7817]
[1745503546265,25.13989337,149.99,149.97,6.6656]
[1745503546763,25.13989337,149.99,149.95,6.6664]
[1745503546964,34.24,150.02,149.88,36.2716]
[1745503546965,25.13989337,149.96,149.88,36.2716]
[1745503547169,25.13989337,149.96,149.88,2.0316]
[1745503547370,34.24,150.02,149.89,6.54118241]
[1745503547670,59.37989337,150.02,149.9,6.54118241]
[1745503547873,25.13989337,149.99,149.88,2.0316]
[1745503548068,25.13989337,149.99,149.89,6.53947013]
[1745503548368,25.13989337,149.99,149.9,6.53947013]
[1745503548774,25.13989337,149.99,149.89,34.24]
[1745503548971,25.13989337,149.99,149.96,6.666]
[1745503549175,25.13989337,149.99,149.89,34.24]
[1745503549471,25.13989337,150.01,149.98,6.665]
[1745503549666,25.13989337,150.01,149.89,47.5785]
[1745503549971,25.13989337,150.01,149.9,6.53379504]
[1745503550161,25.13989337,150.01,149.91,6.533641]
[1745503550366,25.13989337,150.01,149.92,6.533641]
[1745503550672,25.13989337,150.01,149.91,25.13989337]
[1745503550871,25.13989337,150.01,149.92,8.54420137]
[1745503551069,25.13989337,150.03,149.94,13.3341]
[1745503551370,25.13989337,150.03,149.95,34.24]
[1745503551670,31.80319337,150.03,149.95,34.24]
[1745503552467,6.6637,150.02,149.95,34.24]
[1745503552771,34.24,150.01,149.92,34.24]
[1745503552969,59.37989337,150.01,149.92,34.24]
[1745503553770,6.6647,150.0,149.92,34.24]
[1745503553972,25.13989337,149.98,149.85,1.8997]
[1745503554269,27.15129337,149.97,149.86,6.52828031]
[1745503554466,27.15129337,149.97,149.87,6.52828031]
[1745503554662,25.13989337,149.98,149.88,6.52828031]
[1745503554860,25.13989337,149.98,149.85,35.3397]
[1745503555066,25.13989337,149.98,149.86,6.53348383]
[1745503555265,25.13989337,149.98,149.96,6.6662]
[1745503555571,25.13989337,149.98,149.87,13.3403]
[1745503555771,1.9707,149.97,149.95,6.6665]
[1745503556072,1.9707,149.97,149.88,13.3397]
[1745503556269,1.9707,149.97,149.89,6.53586073]
[1745503556570,1.9707,149.97,149.96,6.6663]
[1745503557072,2.0097,150.0,149.89,13.3383]
[1745503557270,3.9804,150.0,149.9,6.53656891]
[1745503557465,3.9804,150.0,149.91,6.53656891]
[1745503557769,3.9804,150.0,149.89,13.3383]
[1745503557968,3.9804,150.0,149.9,6.53804432]
[1745503558170,3.9804,150.0,149.97,6.6655]
[1745503558368,3.9804,150.0,149.89,13.3383]
[1745503558573,3.9804,150.0,149.98,6.6651]
[1745503558770,3.9804,150.0,149.9,37.3321]
[1745503558968,25.13989337,149.98,149.9,35.3622]
[1745503559166,25.13989337,149.98,149.96,6.6661]
[1745503559672,3.835e-05,150.06,149.97,78.75989337]
[1745503559974,94.97142523,150.23,150.05,50.27978674]
[1745503560166,94.97142523,150.23,150.11,25.13989337]
[1745503560367,94.97142523,150.23,150.08,38.46129337]
[1745503560566,96.99432523,150.23,150.11,25.13989337]
[1745503560973,25.13989337,150.22,150.11,25.13989337]
[1745503561167,96.99432523,150.23,150.14,25.13989337]
[1745503561373,94.97142523,150.23,150.22,6.6547]
[1745503562069,94.97142523,150.23,150.12,46.42860185]
[1745503562270,128.41142523,150.23,150.12,46.42860185]
[1745503563074,33.44,150.23,150.12,46.42860185]
[1745503563268,33.44,150.23,150.18,46.42860185]
[1745503563465,480.08,150.26,150.11,33.44]
[1745503563664,480.08,150.26,150.17,46.42860185]
[1745503564272,480.08,150.26,150.18,6.6562]
[1745503564473,526.50860185,150.26,150.14,46.42860185]
[1745503564672,526.50860185,150.26,150.18,6.6565]
[1745503564878,526.50860185,150.26,150.14,46.42860185]
[1745503565372,480.08,150.26,150.17,46.42860185]
[1745503566073,33.42,150.27,150.17,46.42860185]
[1745503566273,1.9176,150.31,150.23,46.42860185]
[1745503566872,1.9176,150.31,150.21,33.4]
[1745503567074,33.4,150.3,150.21,33.4]
[1745503567771,46.42860185,150.29,150.18,1.9312]
[1745503567971,46.42860185,150.26,150.16,33.4]
[1745503568171,33.4,150.25,150.16,33.4]
[1745503568370,46.42860185,150.23,150.16,33.4]
[1745503568675,46.42860185,150.23,150.15,2.0235]
[1745503569074,33.4,150.25,150.15,2.0235]
[1745503569376,33.4,150.25,150.17,46.42860185]
[1745503570077,33.20025302,150.25,150.17,46.42860185]
[1745503570573,33.20025302,150.25,150.15,2.0235]
[1745503571470,33.20025302,150.25,150.11,46.42860185]
[1745503571676,46.42860185,150.21,150.11,33.38]
[1745503571870,33.38,150.2,150.11,33.38]
[1745503572275,33.38,150.2,150.15,6.6578]
[1745503572679,33.38,150.2,150.11,79.80860185]
[1745503573078,33.38,150.2,150.11,33.38]
[1745503573384,33.38,150.2,150.1,3.9723]
[1745503573576,46.42860185,150.18,150.05,79.80860185]
[1745503573776,46.42860185,150.15,150.02,46.42860185]
[1745503573976,46.42860185,150.12,150.02,33.38]
[1745503574881,46.42860185,150.09,150.01,6.0095]
[1745503575078,79.80860185,150.09,149.97,46.42860185]
[1745503575283,46.42860185,150.06,149.97,3.9433]
[1745503575784,46.42860185,150.08,149.86,30.94725988]
[1745503575984,46.42860185,149.93,149.87,6.4812364]
[1745503576283,6.6677,149.93,149.86,30.94725988]
[1745503576482,36.36,149.95,149.86,30.94725988]
[1745503576779,82.78860185,149.95,149.86,30.94725988]
[1745503576980,36.36,149.95,149.86,30.94725988]
[1745503577176,46.42860185,149.97,149.86,30.94725988]
[1745503577374,46.42860185,149.94,149.86,30.94725988]
[1745503577574,46.42860185,149.97,149.86,30.94725988]
[1745503577783,36.36,149.99,149.88,46.42860185]
[1745503577983,36.36,149.99,149.86,30.94725988]
[1745503578183,46.42860185,149.97,149.87,6.49381946]
[1745503578383,46.42860185,149.97,149.9,6.6685]
[1745503578585,46.42860185,149.97,149.86,62.0]
[1745503578882,46.42860185,149.97,149.85,82.78860185]
[1745503579182,46.42860185,149.97,149.86,6.50042461]
[1745503579483,46.42860185,149.97,149.9,6.6685]
[1745503580084,46.42860185,149.97,149.91,6.6683]
[1745503581684,3.1207,150.04,149.91,46.42860185]
[1745503581685,84.02860185,150.03,149.91,46.42860185]
[1745503581885,40.7207,150.04,149.94,46.42860185]
[1745503582187,37.6,150.04,149.94,46.42860185]
[1745503582387,37.6,150.04,149.95,1.8829]
[1745503582686,46.42860185,150.03,149.91,50.44110185]
[1745503582881,46.42860185,150.03,149.92,6.49456592]
[1745503583088,46.42860185,150.03,149.91,50.44110185]
[1745503583386,37.6,150.04,149.94,46.42860185]
[1745503584088,37.6,150.04,149.91,50.44110185]
[1745503584386,37.6,150.04,149.92,6.49800369]
[1745503584686,37.6,150.04,149.93,6.49769377]
[1745503584883,37.6,150.04,149.91,50.44110185]
[1745503585185,37.6,150.04,149.92,6.49793006]
[1745503585486,46.42860185,150.02,149.95,6.6666]
[1745503585786,2.008,150.03,149.95,6.6666]
[1745503586085,46.42860185,150.0,149.96,6.6662]
[1745503586887,46.42860185,150.0,149.89,46.42860185]
[1745503587084,1.9965,150.02,149.9,6.5025259]
[1745503587388,1.9965,150.02,149.91,6.5035201]
[1745503587686,1.9965,150.02,149.92,6.5035201]
[1745503587881,1.9965,150.02,149.9,46.42860185]
[1745503588284,1.9965,150.02,149.91,6.5026095]
[1745503588484,1.9965,150.02,149.9,46.42860185]
[1745503588686,1.9965,150.02,149.91,6.50074335]
[1745503588884,1.9965,150.02,149.9,46.42860185]
[1745503589090,1.9965,150.02,149.91,6.50099063]
[1745503589389,1.9965,150.02,149.9,46.42860185]
[1745503589689,46.42860185,150.0,149.94,6.667]
[1745503589988,37.62,149.99,149.88,37.6]
[1745503590189,37.62,149.99,149.95,6.6665]
[1745503591188,84.04860185,149.99,149.88,37.6]
[1745503591392,84.04860185,149.99,149.89,6.50371676]
[1745503591587,84.04860185,149.99,149.88,37.6]
[1745503591892,37.62,149.99,149.98,6.6654]
[1745503594885,37.62,149.99,149.97,6.6657]
[1745503595083,84.04860185,149.99,149.89,13.3386]
[1745503595496,84.04860185,149.99,149.97,6.6658]
[1745503595799,84.04860185,149.99,149.89,13.3386]
[1745503596292,37.62,149.99,149.98,6.6654]
[1745503596488,1.9965,150.02,149.93,46.42860185]
[1745503596688,39.6165,150.02,150.01,6.664]
[1745503596891,39.6165,150.02,149.93,46.42860185]
[1745503598592,86.04510185,150.02,149.9,108.42860185]
[1745503598792,46.42860185,149.99,149.89,13.3386]
[1745503600389,86.04510185,150.02,149.9,59.76610185]
[1745503601291,92.70880185,150.02,149.9,59.76610185]
[1745503601594,46.42860185,149.99,149.9,13.3375]
[1745503601894,46.42860185,149.99,149.93,6.6674]
[1745503601895,46.42860185,149.96,149.93,6.6674]
[1745503602092,37.62,149.95,149.87,1.8829]
[1745503602495,37.62,149.95,149.94,6.6672]
[1745503603791,37.62,149.95,149.87,1.8829]
[1745503604693,1.9976,149.98,149.88,13.3395]
[1745503604894,36.38,150.0,149.89,6.50864702]
[1745503605196,36.38,150.0,149.88,46.42860185]
[1745503605396,36.38,150.0,149.99,6.6649]
[1745503606394,1.9965,150.02,150.01,6.664]
[1745503606698,36.38,150.04,149.94,82.80860185]
[1745503606889,36.38,150.04,149.97,46.42860185]
[1745503607093,36.38,150.04,150.03,6.6632]
[1745503608496,36.38,150.09,149.99,13.3295]
[1745503608695,36.38,150.12,150.01,46.42860185]
[1745503608893,38.2583,150.12,150.01,46.42860185]
[1745503609094,38.2583,150.12,150.1,6.6599]
[1745503609794,38.2583,150.12,150.11,6.6596]
[1745503610807,38.2583,150.12,150.02,1.9843]
[1745503611505,38.2583,150.12,150.1,6.6596]
[1745503612405,38.2583,150.12,150.02,1.9843]
[1745503612610,38.2583,150.12,150.01,46.42860185]
[1745503612611,46.42860185,150.07,149.99,49.7095]
[1745503612803,82.78860185,150.07,150.0,6.52728591]
[1745503613002,82.78860185,150.07,149.96,4.0213]
[1745503613206,46.42860185,150.04,149.97,6.52871451]
[1745503613509,46.42860185,150.04,150.02,6.6633]
[1745503613709,44.6198,150.11,149.98,46.42860185]
[1745503614008,39.919,150.11,149.99,6.53473322]
[1745503614309,46.42860185,150.09,150.0,6.53473322]
[1745503614609,46.42860185,150.09,150.03,6.6628]
[1745503614912,6.6612,150.08,149.97,13.331]
[1745503615208,6.6612,150.08,149.98,6.54092032]
[1745503615412,46.42860185,150.09,149.99,6.54092032]
[1745503615603,46.42860185,150.06,150.0,6.54092032]
[1745503615805,37.96,150.05,149.96,1.9814]
[1745503616013,37.96,150.05,150.03,6.6631]
[1745503616311,37.96,150.05,149.96,1.9814]
[1745503616507,37.96,150.05,149.97,6.56234244]
[1745503616708,46.42860185,150.03,149.98,6.56258482]
[1745503616914,46.42860185,150.0,149.97,6.6658]
[1745503617114,84.38860185,150.0,149.97,6.6658]